[Event "Live Chess"]
[Site "Chess.com"]
[Date "2023.05.21"]
[Round "-"]
[White "Nazar_777"]
[Black "Jo1ts"]
[Result "1/2-1/2"]
[WhiteElo "1589"]
[BlackElo "842"]
[TimeControl "300"]
[EndTime "23:26:18 PDT"]
[Termination "Game drawn by repetition"]

1. e3 {[%clk 0:04:58.3]} 1... d5 {[%clk 0:04:58.8]} 2. h4 {[%clk 0:04:56.5]}
2... e5 {[%clk 0:04:58.1]} 3. a3 {[%clk 0:04:50]} 3... Nf6 {[%clk 0:04:49.5]} 4.
c4 {[%clk 0:04:48.5]} 4... Nc6 {[%clk 0:04:28.8]} 5. Nf3 {[%clk 0:04:44.9]} 5...
Bg4 {[%clk 0:04:27.5]} 6. Be2 {[%clk 0:04:42.2]} 6... dxc4 {[%clk 0:04:19.9]} 7.
Qc2 {[%clk 0:04:37.7]} 7... Bd6 {[%clk 0:04:08.3]} 8. Bxc4 {[%clk 0:04:35.6]}
8... e4 {[%clk 0:04:03.1]} 9. Ng5 {[%clk 0:04:30.7]} 9... Ne5 {[%clk 0:03:51.8]}
10. Be2 {[%clk 0:04:18.8]} 10... Bxe2 {[%clk 0:03:43.7]} 11. Kxe2 {[%clk
0:04:16]} 11... h6 {[%clk 0:03:42.1]} 12. Nh3 {[%clk 0:04:13.5]} 12... O-O
{[%clk 0:03:36.3]} 13. Nc3 {[%clk 0:04:12.1]} 13... c6 {[%clk 0:03:22.8]} 14.
Ke1 {[%clk 0:04:10]} 14... Qd7 {[%clk 0:03:19.8]} 15. Nxe4 {[%clk 0:04:08.1]}
15... Nxe4 {[%clk 0:03:16.7]} 16. Qxe4 {[%clk 0:04:06.4]} 16... Qg4 {[%clk
0:03:10.3]} 17. Qxg4 {[%clk 0:04:03.6]} 17... Nxg4 {[%clk 0:03:10.2]} 18. b4
{[%clk 0:04:01.6]} 18... c5 {[%clk 0:03:07.1]} 19. bxc5 {[%clk 0:03:58.8]} 19...
Bxc5 {[%clk 0:03:07]} 20. Bb2 {[%clk 0:03:57.5]} 20... Rad8 {[%clk 0:02:51.2]}
21. Nf4 {[%clk 0:03:55.1]} 21... g6 {[%clk 0:02:38.3]} 22. h5 {[%clk 0:03:50.6]}
22... g5 {[%clk 0:02:34.7]} 23. Ne2 {[%clk 0:03:47.5]} 23... Rfe8 {[%clk
0:02:31.7]} 24. f3 {[%clk 0:03:31]} 24... Ne5 {[%clk 0:02:29.5]} 25. Bxe5 {[%clk
0:03:29.1]} 25... Rxe5 {[%clk 0:02:27.2]} 26. Kf2 {[%clk 0:03:27.4]} 26... Rxd2
{[%clk 0:02:23.6]} 27. Rad1 {[%clk 0:03:24.6]} 27... Rxd1 {[%clk 0:02:03.8]} 28.
Rxd1 {[%clk 0:03:22.5]} 28... Bxe3+ {[%clk 0:02:02.9]} 29. Kg3 {[%clk
0:03:20.5]} 29... Bf4+ {[%clk 0:01:56.7]} 30. Nxf4 {[%clk 0:03:19]} 30... gxf4+
{[%clk 0:01:56.6]} 31. Kxf4 {[%clk 0:03:18.1]} 31... Ra5 {[%clk 0:01:54.3]} 32.
g4 {[%clk 0:03:14.6]} 32... Rxa3 {[%clk 0:01:52]} 33. g5 {[%clk 0:03:01.9]}
33... hxg5+ {[%clk 0:01:50.6]} 34. Kxg5 {[%clk 0:03:00.4]} 34... Rxf3 {[%clk
0:01:49.3]} 35. Rd7 {[%clk 0:02:52.8]} 35... Rb3 {[%clk 0:01:40.7]} 36. h6
{[%clk 0:02:45.3]} 36... a5 {[%clk 0:01:32.5]} 37. Kf6 {[%clk 0:02:38.7]} 37...
Rb6+ {[%clk 0:01:27.4]} 38. Kg5 {[%clk 0:02:36.3]} 38... Rg6+ {[%clk 0:01:17.4]}
39. Kh5 {[%clk 0:02:31.8]} 39... b5 {[%clk 0:01:14.3]} 40. Rb7 {[%clk
0:02:25.8]} 40... b4 {[%clk 0:01:13]} 41. Ra7 {[%clk 0:02:23.6]} 41... b3 {[%clk
0:01:09.8]} 42. Rxa5 {[%clk 0:02:20.9]} 42... Rb6 {[%clk 0:01:09.2]} 43. Ra1
{[%clk 0:02:12.5]} 43... b2 {[%clk 0:01:07.3]} 44. Rb1 {[%clk 0:02:11.2]} 44...
Rb5+ {[%clk 0:01:05.8]} 45. Kg4 {[%clk 0:02:08.6]} 45... Kh7 {[%clk 0:01:04.7]}
46. Kf4 {[%clk 0:02:03.9]} 46... Kxh6 {[%clk 0:01:03.8]} 47. Ke4 {[%clk
0:02:02.7]} 47... Kg5 {[%clk 0:01:01.8]} 48. Kd3 {[%clk 0:02:01.8]} 48... f5
{[%clk 0:00:58]} 49. Kc2 {[%clk 0:02:00.4]} 49... f4 {[%clk 0:00:57.3]} 50. Rg1+
{[%clk 0:01:54.4]} 50... Kf5 {[%clk 0:00:54.7]} 51. Kb1 {[%clk 0:01:52.8]} 51...
Ke4 {[%clk 0:00:47.2]} 52. Re1+ {[%clk 0:01:50.5]} 52... Kf3 {[%clk 0:00:45.6]}
53. Rf1+ {[%clk 0:01:47.4]} 53... Ke4 {[%clk 0:00:37.2]} 54. Re1+ {[%clk
0:01:45.9]} 54... Kd3 {[%clk 0:00:35.3]} 55. Rf1 {[%clk 0:01:41.1]} 55... Ke4
{[%clk 0:00:30.2]} 56. Re1+ {[%clk 0:01:39.3]} 1/2-1/2

[Event "Live Chess"]
[Site "Chess.com"]
[Date "2023.05.21"]
[Round "-"]
[White "Pandreq"]
[Black "hturner40"]
[Result "0-1"]
[WhiteElo "1268"]
[BlackElo "1804"]
[TimeControl "300"]
[EndTime "23:27:00 PDT"]
[Termination "hturner40 won by resignation"]

1. d4 {[%clk 0:04:58]} 1... Nf6 {[%clk 0:04:57.9]} 2. c4 {[%clk 0:04:57]} 2...
g6 {[%clk 0:04:56]} 3. Nc3 {[%clk 0:04:56.4]} 3... d5 {[%clk 0:04:54.5]} 4. cxd5
{[%clk 0:04:55.3]} 4... Nxd5 {[%clk 0:04:52.6]} 5. e4 {[%clk 0:04:54.6]} 5...
Nxc3 {[%clk 0:04:51]} 6. bxc3 {[%clk 0:04:54.5]} 6... Bg7 {[%clk 0:04:48.8]} 7.
Nf3 {[%clk 0:04:51.3]} 7... O-O {[%clk 0:04:46.4]} 8. Bc4 {[%clk 0:04:50]} 8...
Nc6 {[%clk 0:04:44.7]} 9. O-O {[%clk 0:04:48.1]} 9... b6 {[%clk 0:04:43.6]} 10.
Bf4 {[%clk 0:04:44.2]} 10... Bb7 {[%clk 0:04:41.7]} 11. Rc1 {[%clk 0:04:32.7]}
11... Na5 {[%clk 0:04:38.8]} 12. Bb3 {[%clk 0:04:28.7]} 12... Nxb3 {[%clk
0:04:29.8]} 13. axb3 {[%clk 0:04:28.6]} 13... Bxe4 {[%clk 0:04:25.6]} 14. Re1
{[%clk 0:04:21.9]} 14... Bb7 {[%clk 0:04:15.3]} 15. c4 {[%clk 0:04:14.9]} 15...
Bxf3 {[%clk 0:04:00.9]} 16. Qxf3 {[%clk 0:04:11.6]} 16... Qxd4 {[%clk
0:03:53.7]} 17. Bxc7 {[%clk 0:04:05.4]} 17... Qc5 {[%clk 0:03:40.9]} 18. Bf4
{[%clk 0:03:45.8]} 18... e6 {[%clk 0:03:17.6]} 19. Qd3 {[%clk 0:03:28.1]} 19...
Rad8 {[%clk 0:03:05.3]} 20. Qg3 {[%clk 0:03:19.8]} 20... Rd7 {[%clk 0:02:24.7]}
21. Red1 {[%clk 0:02:59.8]} 21... Rfd8 {[%clk 0:02:20.1]} 22. Rxd7 {[%clk
0:02:50.8]} 22... Rxd7 {[%clk 0:02:18.3]} 23. h3 {[%clk 0:02:46.4]} 23... a5
{[%clk 0:02:11.2]} 24. Be3 {[%clk 0:02:17.3]} 24... Qa3 {[%clk 0:01:44.2]} 25.
Bf4 {[%clk 0:01:56.3]} 25... e5 {[%clk 0:01:33.5]} 26. Bg5 {[%clk 0:01:20.7]}
26... h6 {[%clk 0:01:29.4]} 27. Bxh6 {[%clk 0:00:53.2]} 27... Bxh6 {[%clk
0:01:21.7]} 28. Re1 {[%clk 0:00:39.3]} 28... Bg7 {[%clk 0:01:16.6]} 29. Qg4
{[%clk 0:00:26.9]} 29... Qd6 {[%clk 0:01:10.9]} 30. Qe4 {[%clk 0:00:16]} 30...
Qd4 {[%clk 0:01:06]} 31. Qa8+ {[%clk 0:00:13.3]} 31... Kh7 {[%clk 0:00:59.1]}
32. Qf3 {[%clk 0:00:11.1]} 32... f5 {[%clk 0:00:47.5]} 33. Qg3 {[%clk
0:00:03.8]} 0-1

[Event "Live Chess"]
[Site "Chess.com"]
[Date "2023.05.21"]
[Round "-"]
[White "Davidagye"]
[Black "Long1968"]
[Result "1-0"]
[WhiteElo "1672"]
[BlackElo "1044"]
[TimeControl "300"]
[EndTime "23:27:09 PDT"]
[Termination "Davidagye won on time"]

1. e4 {[%clk 0:04:57.6]} 1... e6 {[%clk 0:04:58.2]} 2. d4 {[%clk 0:04:56.4]}
2... d5 {[%clk 0:04:55.9]} 3. Nc3 {[%clk 0:04:55.6]} 3... Bb4 {[%clk 0:04:52.4]}
4. e5 {[%clk 0:04:53.8]} 4... c5 {[%clk 0:04:49.5]} 5. a3 {[%clk 0:04:45.5]}
5... cxd4 {[%clk 0:04:45.5]} 6. axb4 {[%clk 0:04:40.6]} 6... dxc3 {[%clk
0:04:42.8]} 7. bxc3 {[%clk 0:04:40]} 7... Qc7 {[%clk 0:04:40]} 8. Qd4 {[%clk
0:04:36.1]} 8... Nc6 {[%clk 0:04:37]} 9. Bb5 {[%clk 0:04:34.5]} 9... Bd7 {[%clk
0:04:32.2]} 10. Bxc6 {[%clk 0:04:32.4]} 10... Bxc6 {[%clk 0:04:28]} 11. Ne2
{[%clk 0:04:30.4]} 11... Ne7 {[%clk 0:04:24.1]} 12. f4 {[%clk 0:04:27.4]} 12...
Nf5 {[%clk 0:04:17.6]} 13. Qc5 {[%clk 0:04:25.4]} 13... b6 {[%clk 0:04:04.5]}
14. Qf2 {[%clk 0:04:21.7]} 14... O-O {[%clk 0:03:46.8]} 15. g4 {[%clk
0:04:18.5]} 15... Ne7 {[%clk 0:03:41.4]} 16. Be3 {[%clk 0:04:10.1]} 16... f6
{[%clk 0:03:30.9]} 17. Bd4 {[%clk 0:03:59.8]} 17... f5 {[%clk 0:03:19.6]} 18.
Rg1 {[%clk 0:03:54]} 18... fxg4 {[%clk 0:03:08.3]} 19. Rxg4 {[%clk 0:03:51.4]}
19... Nf5 {[%clk 0:03:05]} 20. Kd2 {[%clk 0:03:42.5]} 20... Qf7 {[%clk
0:02:40.4]} 21. Rag1 {[%clk 0:03:34]} 21... g6 {[%clk 0:02:30.2]} 22. h4 {[%clk
0:03:28.3]} 22... Nxd4 {[%clk 0:01:34.2]} 23. Nxd4 {[%clk 0:03:22]} 23... Be8
{[%clk 0:01:26.6]} 24. h5 {[%clk 0:03:19.6]} 24... Qg7 {[%clk 0:01:05.1]} 25.
Nxe6 {[%clk 0:03:11]} 25... Qxe5 {[%clk 0:00:48.8]} 26. fxe5 {[%clk 0:03:04.3]}
26... Rxf2+ {[%clk 0:00:38.8]} 27. Ke3 {[%clk 0:03:02.7]} 27... Rxc2 {[%clk
0:00:33.9]} 28. hxg6 {[%clk 0:02:58.5]} 28... Bxg6 {[%clk 0:00:27.9]} 29. Nf4
{[%clk 0:02:49.5]} 29... Rxc3+ {[%clk 0:00:23.7]} 30. Kd4 {[%clk 0:02:47.5]}
30... Rc4+ {[%clk 0:00:18.1]} 31. Kxd5 {[%clk 0:02:45.9]} 31... Rac8 {[%clk
0:00:14.5]} 32. Nxg6 {[%clk 0:02:43.7]} 32... Rxg4 {[%clk 0:00:10.8]} 33. Rxg4
{[%clk 0:02:41.6]} 33... hxg6 {[%clk 0:00:08.4]} 34. Rxg6+ {[%clk 0:02:40.7]}
34... Kf7 {[%clk 0:00:04.8]} 35. Rc6 {[%clk 0:02:39.9]} 1-0

[Event "Live Chess"]
[Site "Chess.com"]
[Date "2023.05.21"]
[Round "-"]
[White "f4nomore"]
[Black "chessfiction"]
[Result "0-1"]
[WhiteElo "1422"]
[BlackElo "2346"]
[TimeControl "300"]
[EndTime "23:27:20 PDT"]
[Termination "chessfiction won on time"]

1. d4 {[%clk 0:04:52.9]} 1... d5 {[%clk 0:04:59.2]} 2. Nf3 {[%clk 0:04:50.4]}
2... Nc6 {[%clk 0:04:57.8]} 3. e3 {[%clk 0:04:47.9]} 3... Bg4 {[%clk 0:04:57.2]}
4. Be2 {[%clk 0:04:46.3]} 4... Qd6 {[%clk 0:04:56.4]} 5. O-O {[%clk 0:04:43.8]}
5... O-O-O {[%clk 0:04:55.4]} 6. Nc3 {[%clk 0:04:38.1]} 6... e5 {[%clk
0:04:53.6]} 7. dxe5 {[%clk 0:04:33.1]} 7... Qg6 {[%clk 0:04:45.8]} 8. Nb5 {[%clk
0:04:04.5]} 8... Be7 {[%clk 0:04:38.7]} 9. Nbd4 {[%clk 0:04:00.7]} 9... Nh6
{[%clk 0:04:35.1]} 10. Nxc6 {[%clk 0:03:57.9]} 10... Qxc6 {[%clk 0:04:29.9]} 11.
Nd4 {[%clk 0:03:55.9]} 11... Qg6 {[%clk 0:04:26.6]} 12. Bxg4+ {[%clk 0:03:46.8]}
12... Nxg4 {[%clk 0:04:26.5]} 13. h3 {[%clk 0:03:44.1]} 13... Nxe5 {[%clk
0:04:18.8]} 14. Nf3 {[%clk 0:03:39.6]} 14... f6 {[%clk 0:04:12.5]} 15. Nxe5
{[%clk 0:03:36.9]} 15... fxe5 {[%clk 0:04:12.4]} 16. c3 {[%clk 0:03:33.1]} 16...
h5 {[%clk 0:04:10.4]} 17. Bd2 {[%clk 0:03:21.1]} 17... e4 {[%clk 0:04:06.5]} 18.
Qa4 {[%clk 0:03:13.4]} 18... Kb8 {[%clk 0:04:04.2]} 19. c4 {[%clk 0:03:05.3]}
19... dxc4 {[%clk 0:04:00.1]} 20. Bc3 {[%clk 0:02:57.9]} 20... Rh6 {[%clk
0:03:54.5]} 21. Bd4 {[%clk 0:02:48.1]} 21... a6 {[%clk 0:03:53.4]} 22. Rad1
{[%clk 0:02:39.3]} 22... Qg5 {[%clk 0:03:49.5]} 23. Bc3 {[%clk 0:02:23.3]} 23...
Rg6 {[%clk 0:03:43.3]} 24. Rxd8+ {[%clk 0:02:18.4]} 24... Bxd8 {[%clk
0:03:43.2]} 25. g3 {[%clk 0:02:12.8]} 25... Qf5 {[%clk 0:03:36.9]} 26. Qe8
{[%clk 0:02:01.4]} 26... Rd6 {[%clk 0:03:16.5]} 27. Bd4 {[%clk 0:01:42.3]} 27...
h4 {[%clk 0:03:07.2]} 28. g4 {[%clk 0:01:38.1]} 28... Qb5 {[%clk 0:03:02.5]} 29.
Qh5 {[%clk 0:01:22.5]} 29... Qxh5 {[%clk 0:03:00.3]} 30. gxh5 {[%clk 0:01:20.4]}
30... Rd5 {[%clk 0:02:59.8]} 31. f4 {[%clk 0:01:14.2]} 31... Rxh5 {[%clk
0:02:54.5]} 32. Bxg7 {[%clk 0:01:07.7]} 32... Rh7 {[%clk 0:02:53.4]} 33. Be5
{[%clk 0:01:05.6]} 33... Rh6 {[%clk 0:02:48.7]} 34. Kh2 {[%clk 0:01:02.3]} 34...
Kc8 {[%clk 0:02:42.6]} 35. Rc1 {[%clk 0:00:53]} 35... b5 {[%clk 0:02:40.7]} 36.
Rg1 {[%clk 0:00:50.6]} 36... Rh7 {[%clk 0:02:35.4]} 37. Rg6 {[%clk 0:00:45.6]}
37... Kb7 {[%clk 0:02:30.6]} 38. b3 {[%clk 0:00:38.3]} 38... Rd7 {[%clk
0:02:28.9]} 39. bxc4 {[%clk 0:00:34.1]} 39... bxc4 {[%clk 0:02:28.8]} 40. Bd4
{[%clk 0:00:29]} 40... c5 {[%clk 0:02:22.2]} 41. Bc3 {[%clk 0:00:18.2]} 41...
Rd3 {[%clk 0:02:20.4]} 42. Rg7+ {[%clk 0:00:12.9]} 42... Kc6 {[%clk 0:02:19.1]}
43. Rg6+ {[%clk 0:00:07.8]} 43... Kb5 {[%clk 0:02:17.8]} 44. Be5 {[%clk
0:00:01]} 44... Rd2+ {[%clk 0:02:14.9]} 0-1

[Event "Live Chess"]
[Site "Chess.com"]
[Date "2023.05.21"]
[Round "-"]
[White "minenko-1958"]
[Black "WilliamofOrange16th"]
[Result "0-1"]
[WhiteElo "1425"]
[BlackElo "1817"]
[TimeControl "300"]
[EndTime "23:27:25 PDT"]
[Termination "WilliamofOrange16th won by resignation"]

1. e4 {[%clk 0:04:57.3]} 1... d6 {[%clk 0:04:57.2]} 2. Nf3 {[%clk 0:04:55.5]}
2... Nf6 {[%clk 0:04:56.2]} 3. Nc3 {[%clk 0:04:52.5]} 3... e5 {[%clk 0:04:55.1]}
4. Bc4 {[%clk 0:04:49.9]} 4... Be7 {[%clk 0:04:53.7]} 5. h3 {[%clk 0:04:48.4]}
5... O-O {[%clk 0:04:52.7]} 6. d3 {[%clk 0:04:46.9]} 6... c6 {[%clk 0:04:51.9]}
7. a3 {[%clk 0:04:45.1]} 7... b5 {[%clk 0:04:49.3]} 8. Ba2 {[%clk 0:04:43.2]}
8... Nbd7 {[%clk 0:04:48.7]} 9. O-O {[%clk 0:04:39.1]} 9... a5 {[%clk
0:04:46.6]} 10. b4 {[%clk 0:04:33.6]} 10... Qc7 {[%clk 0:04:37.3]} 11. Nh2
{[%clk 0:04:13.4]} 11... Nb6 {[%clk 0:04:26.4]} 12. f4 {[%clk 0:04:03.8]} 12...
d5 {[%clk 0:04:23]} 13. exd5 {[%clk 0:03:52.7]} 13... Nbxd5 {[%clk 0:04:20.7]}
14. Nxd5 {[%clk 0:03:46.8]} 14... Nxd5 {[%clk 0:04:05.5]} 15. fxe5 {[%clk
0:03:45.3]} 15... Qxe5 {[%clk 0:04:02.2]} 16. d4 {[%clk 0:03:37.6]} 16... Qg3
{[%clk 0:03:45.8]} 17. Qf3 {[%clk 0:03:26.7]} 17... Qg6 {[%clk 0:03:40.3]} 18.
Bxd5 {[%clk 0:03:22.5]} 18... cxd5 {[%clk 0:03:39]} 19. Qxd5 {[%clk 0:03:18.5]}
19... Bxh3 {[%clk 0:03:34.6]} 20. Bf4 {[%clk 0:03:02.8]} 20... axb4 {[%clk
0:03:27]} 21. axb4 {[%clk 0:02:58.4]} 21... Rxa1 {[%clk 0:03:23.9]} 22. Rxa1
{[%clk 0:02:56.6]} 22... Bxb4 {[%clk 0:03:21.2]} 23. Be5 {[%clk 0:02:36.6]}
23... Bc3 {[%clk 0:03:14.2]} 24. Rf1 {[%clk 0:02:32]} 24... Be6 {[%clk
0:03:08.7]} 25. Qxb5 {[%clk 0:02:24.6]} 25... Qxc2 {[%clk 0:03:05.6]} 26. Qc5
{[%clk 0:02:14]} 26... Qd3 {[%clk 0:02:41.2]} 27. Nf3 {[%clk 0:02:08.7]} 27...
Bc4 {[%clk 0:02:34]} 28. Nh2 {[%clk 0:01:39.6]} 28... f6 {[%clk 0:02:30.6]} 29.
Kh1 {[%clk 0:01:24.5]} 29... Re8 {[%clk 0:02:07.7]} 30. Bf4 {[%clk 0:00:51.9]}
30... Qxd4 {[%clk 0:02:03.8]} 31. Qxd4 {[%clk 0:00:41.7]} 31... Bxd4 {[%clk
0:02:03.7]} 32. Rd1 {[%clk 0:00:36.8]} 32... Be5 {[%clk 0:01:59.5]} 33. Bxe5
{[%clk 0:00:34.8]} 33... Rxe5 {[%clk 0:01:53.8]} 34. Nf3 {[%clk 0:00:34.7]}
34... Rd5 {[%clk 0:01:51.3]} 35. Rxd5 {[%clk 0:00:32.4]} 35... Bxd5 {[%clk
0:01:49.8]} 36. Kg1 {[%clk 0:00:31.5]} 36... Bxf3 {[%clk 0:01:48.4]} 37. gxf3
{[%clk 0:00:30.7]} 37... h5 {[%clk 0:01:45.5]} 38. Kg2 {[%clk 0:00:29.7]} 38...
g5 {[%clk 0:01:44.6]} 39. Kg3 {[%clk 0:00:28.8]} 39... Kg7 {[%clk 0:01:44.1]}
40. f4 {[%clk 0:00:26.1]} 40... Kg6 {[%clk 0:01:43.4]} 41. fxg5 {[%clk
0:00:24.4]} 41... fxg5 {[%clk 0:01:41.4]} 0-1

[Event "Live Chess"]
[Site "Chess.com"]
[Date "2023.05.21"]
[Round "-"]
[White "smoggyrabbit"]
[Black "Tushinskiy"]
[Result "0-1"]
[WhiteElo "1738"]
[BlackElo "2204"]
[TimeControl "300"]
[EndTime "23:27:39 PDT"]
[Termination "Tushinskiy won by resignation"]

1. d4 {[%clk 0:04:59.4]} 1... d5 {[%clk 0:04:58]} 2. Nf3 {[%clk 0:04:58.5]} 2...
c6 {[%clk 0:04:57.9]} 3. e3 {[%clk 0:04:57.1]} 3... Nf6 {[%clk 0:04:56.4]} 4.
Nbd2 {[%clk 0:04:53.3]} 4... Bg4 {[%clk 0:04:54.6]} 5. h3 {[%clk 0:04:50.7]}
5... Bh5 {[%clk 0:04:54.5]} 6. g4 {[%clk 0:04:49.6]} 6... Bg6 {[%clk 0:04:52]}
7. Ne5 {[%clk 0:04:49]} 7... Nbd7 {[%clk 0:04:51]} 8. h4 {[%clk 0:04:44.5]} 8...
h6 {[%clk 0:04:46.6]} 9. Nxg6 {[%clk 0:04:40.7]} 9... fxg6 {[%clk 0:04:46.5]}
10. Bd3 {[%clk 0:04:38.7]} 10... Kf7 {[%clk 0:04:45.6]} 11. b3 {[%clk
0:04:23.8]} 11... e5 {[%clk 0:04:42.9]} 12. dxe5 {[%clk 0:04:13.5]} 12... Nxe5
{[%clk 0:04:42.8]} 13. Be2 {[%clk 0:04:12.6]} 13... Bd6 {[%clk 0:04:38.8]} 14.
Bb2 {[%clk 0:04:08.5]} 14... Qe7 {[%clk 0:04:37.4]} 15. c4 {[%clk 0:04:03.1]}
15... Rad8 {[%clk 0:04:33.2]} 16. cxd5 {[%clk 0:03:51.5]} 16... Nxd5 {[%clk
0:04:25.9]} 17. Qc2 {[%clk 0:03:40.8]} 17... Nb4 {[%clk 0:04:20.8]} 18. Qb1
{[%clk 0:03:28.1]} 18... Bc7 {[%clk 0:04:18.9]} 19. Ba3 {[%clk 0:00:53.8]} 19...
Nbd3+ {[%clk 0:03:45.9]} 20. Bxd3 {[%clk 0:00:49.4]} 20... Nxd3+ {[%clk
0:03:45.8]} 21. Ke2 {[%clk 0:00:45.1]} 21... Qxa3 {[%clk 0:03:42.6]} 22. Nc4
{[%clk 0:00:36.5]} 22... Qe7 {[%clk 0:03:40.1]} 23. Rd1 {[%clk 0:00:28.1]} 23...
Ne5 {[%clk 0:03:22.7]} 24. Rxd8 {[%clk 0:00:17.9]} 24... Rxd8 {[%clk 0:03:17.8]}
25. Nxe5+ {[%clk 0:00:15.8]} 25... Bxe5 {[%clk 0:03:15.7]} 26. h5 {[%clk
0:00:14.6]} 26... gxh5 {[%clk 0:03:12.9]} 27. gxh5 {[%clk 0:00:13.7]} 27... Bxa1
{[%clk 0:03:08.5]} 28. Qg6+ {[%clk 0:00:12.5]} 28... Kg8 {[%clk 0:03:05.6]} 29.
Qf5 {[%clk 0:00:09.4]} 0-1

[Event "Live Chess"]
[Site "Chess.com"]
[Date "2023.05.21"]
[Round "-"]
[White "Ninifu"]
[Black "Mikhail_Golubev"]
[Result "0-1"]
[WhiteElo "2023"]
[BlackElo "2492"]
[TimeControl "300"]
[EndTime "23:28:03 PDT"]
[Termination "Mikhail_Golubev won by resignation"]

1. d4 {[%clk 0:04:54.8]} 1... g6 {[%clk 0:04:58.7]} 2. c4 {[%clk 0:04:53.8]}
2... Bg7 {[%clk 0:04:58.1]} 3. e4 {[%clk 0:04:53.3]} 3... d6 {[%clk 0:04:57.2]}
4. Nc3 {[%clk 0:04:52]} 4... Nc6 {[%clk 0:04:56.2]} 5. d5 {[%clk 0:04:47.5]}
5... Nd4 {[%clk 0:04:55.1]} 6. Be3 {[%clk 0:04:46.2]} 6... c5 {[%clk 0:04:53.9]}
7. Nge2 {[%clk 0:04:45.1]} 7... Bg4 {[%clk 0:04:52.5]} 8. h3 {[%clk 0:04:35.4]}
8... Bxe2 {[%clk 0:04:06.3]} 9. Nxe2 {[%clk 0:04:21.4]} 9... Nxe2 {[%clk
0:03:40.4]} 10. Qxe2 {[%clk 0:04:18.9]} 10... Nf6 {[%clk 0:03:37.3]} 11. Qc2
{[%clk 0:04:15]} 11... O-O {[%clk 0:03:30.7]} 12. Bd3 {[%clk 0:04:10]} 12... e6
{[%clk 0:03:11.1]} 13. O-O {[%clk 0:04:03.7]} 13... exd5 {[%clk 0:03:10]} 14.
exd5 {[%clk 0:04:03]} 14... Re8 {[%clk 0:03:06.4]} 15. Rfe1 {[%clk 0:03:57.5]}
15... Nd7 {[%clk 0:03:01.2]} 16. Rad1 {[%clk 0:03:33.7]} 16... Qf6 {[%clk
0:02:44.4]} 17. b3 {[%clk 0:03:29]} 17... Qh4 {[%clk 0:02:35.4]} 18. Qd2 {[%clk
0:03:13.2]} 18... Bd4 {[%clk 0:02:26.5]} 19. Bg5 {[%clk 0:02:45.4]} 19... Bxf2+
{[%clk 0:02:16.8]} 20. Qxf2 {[%clk 0:02:42.8]} 20... Qxg5 {[%clk 0:02:15.2]} 21.
Rf1 {[%clk 0:02:32.5]} 21... Ne5 {[%clk 0:02:13.8]} 22. Bc2 {[%clk 0:02:23.5]}
22... Kg7 {[%clk 0:02:07.5]} 23. Rde1 {[%clk 0:02:22.7]} 23... f5 {[%clk
0:01:49.1]} 24. Qf4 {[%clk 0:02:10]} 24... Qxf4 {[%clk 0:01:47.1]} 25. Rxf4
{[%clk 0:02:07]} 25... Nf3+ {[%clk 0:01:46.5]} 0-1

[Event "Live Chess"]
[Site "Chess.com"]
[Date "2023.05.21"]
[Round "-"]
[White "Mugzwang"]
[Black "Duke_of_Bebington"]
[Result "0-1"]
[WhiteElo "1550"]
[BlackElo "1583"]
[TimeControl "300"]
[EndTime "23:28:07 PDT"]
[Termination "Duke_of_Bebington won on time"]

1. Nf3 {[%clk 0:04:58]} 1... d5 {[%clk 0:04:58.4]} 2. c4 {[%clk 0:04:54.8]} 2...
c6 {[%clk 0:04:57]} 3. g3 {[%clk 0:04:51.9]} 3... Nf6 {[%clk 0:04:51.1]} 4. Bg2
{[%clk 0:04:51.3]} 4... Bf5 {[%clk 0:04:48.6]} 5. O-O {[%clk 0:04:49.6]} 5... e6
{[%clk 0:04:47.7]} 6. b3 {[%clk 0:04:44.6]} 6... h6 {[%clk 0:04:43.2]} 7. Bb2
{[%clk 0:04:43.5]} 7... Nbd7 {[%clk 0:04:40.6]} 8. Nc3 {[%clk 0:04:31.2]} 8...
Bd6 {[%clk 0:04:38.1]} 9. d3 {[%clk 0:04:21.8]} 9... O-O {[%clk 0:04:34.3]} 10.
cxd5 {[%clk 0:04:10.8]} 10... exd5 {[%clk 0:04:32.8]} 11. Rc1 {[%clk 0:04:09.8]}
11... Re8 {[%clk 0:04:30.9]} 12. Nh4 {[%clk 0:03:53]} 12... Bh7 {[%clk
0:04:29.2]} 13. e4 {[%clk 0:03:16.4]} 13... dxe4 {[%clk 0:04:25]} 14. dxe4
{[%clk 0:03:14.7]} 14... Ne5 {[%clk 0:03:59.7]} 15. Nf5 {[%clk 0:02:56.8]} 15...
Bxf5 {[%clk 0:03:54.2]} 16. exf5 {[%clk 0:02:55.4]} 16... Qc7 {[%clk 0:03:39.4]}
17. Ne4 {[%clk 0:02:49.6]} 17... Nxe4 {[%clk 0:03:32.1]} 18. Bxe4 {[%clk
0:02:48.1]} 18... Rad8 {[%clk 0:03:30.6]} 19. Bxe5 {[%clk 0:02:28.6]} 19... Bxe5
{[%clk 0:03:27.2]} 20. Qf3 {[%clk 0:02:28]} 20... Rd4 {[%clk 0:02:54.6]} 21. Bb1
{[%clk 0:02:12.8]} 21... Red8 {[%clk 0:02:48.5]} 22. Qe3 {[%clk 0:01:48.3]}
22... Bf6 {[%clk 0:02:42.1]} 23. Rfe1 {[%clk 0:01:23.7]} 23... Bg5 {[%clk
0:02:23.2]} 24. f4 {[%clk 0:01:19.9]} 24... Bf6 {[%clk 0:02:22.3]} 25. Qf3
{[%clk 0:01:11.2]} 25... Qb6 {[%clk 0:02:13.4]} 26. Kg2 {[%clk 0:01:04.5]} 26...
Rd2+ {[%clk 0:02:04.9]} 27. Kh3 {[%clk 0:01:00.1]} 27... Qd4 {[%clk 0:01:47.1]}
28. Qe3 {[%clk 0:00:48.3]} 28... Qd7 {[%clk 0:01:41.1]} 29. Bc2 {[%clk
0:00:31.7]} 29... Kf8 {[%clk 0:01:19.4]} 30. Rcd1 {[%clk 0:00:30.2]} 30... Rxd1
{[%clk 0:01:13.4]} 31. Rxd1 {[%clk 0:00:29.3]} 31... Qc8 {[%clk 0:01:10.7]} 32.
Rxd8+ {[%clk 0:00:27.7]} 32... Qxd8 {[%clk 0:01:09.6]} 33. Qd3 {[%clk
0:00:23.1]} 33... Qxd3 {[%clk 0:01:06.5]} 34. Bxd3 {[%clk 0:00:21.8]} 34... Ke7
{[%clk 0:01:04.6]} 35. Kg4 {[%clk 0:00:20.1]} 35... Kd6 {[%clk 0:01:03]} 36. Kf3
{[%clk 0:00:18.5]} 36... Kc5 {[%clk 0:01:01.8]} 37. Ke4 {[%clk 0:00:17.9]} 37...
Kb4 {[%clk 0:00:59.7]} 38. Bc4 {[%clk 0:00:17.1]} 38... b5 {[%clk 0:00:56]} 39.
Bxf7 {[%clk 0:00:16.2]} 39... Ka3 {[%clk 0:00:54]} 40. Be8 {[%clk 0:00:15.5]}
40... Kxa2 {[%clk 0:00:50.6]} 41. Bxc6 {[%clk 0:00:15]} 41... Kxb3 {[%clk
0:00:49.4]} 42. Bxb5 {[%clk 0:00:14.1]} 42... Kb4 {[%clk 0:00:48.4]} 43. Ba6
{[%clk 0:00:13.6]} 43... Kc5 {[%clk 0:00:46.7]} 44. Bb7 {[%clk 0:00:13.2]} 44...
Bd4 {[%clk 0:00:42.1]} 45. Bd5 {[%clk 0:00:12.8]} 45... Bg1 {[%clk 0:00:40.4]}
46. h3 {[%clk 0:00:11.4]} 46... Bh2 {[%clk 0:00:39.4]} 47. g4 {[%clk 0:00:11]}
47... Bg1 {[%clk 0:00:35.4]} 48. Ba2 {[%clk 0:00:09.4]} 48... Bd4 {[%clk
0:00:33.5]} 49. Bd5 {[%clk 0:00:07.5]} 49... Bf6 {[%clk 0:00:32.5]} 50. Be6
{[%clk 0:00:06.4]} 50... a5 {[%clk 0:00:30.5]} 51. Kd3 {[%clk 0:00:05.5]} 51...
Kb4 {[%clk 0:00:29.1]} 52. Kc2 {[%clk 0:00:04.9]} 52... Ka3 {[%clk 0:00:28.3]}
53. Kb1 {[%clk 0:00:03.8]} 53... a4 {[%clk 0:00:26.8]} 0-1